bitfinex-derivatives/quotes_ETHF0:USTF0_20251005
["timestamp","ask_amount","ask_price","bid_price","bid_amount"]
[1759651432956,0.9706,4614.4,4614.3,3.2078]
[1759651433654,5.9706,4614.4,4614.3,3.2078]
[1759651434557,5.9706,4614.4,4613.1,3.2078]
[1759651434558,0.7315,4614.0,4613.1,3.2078]
[1759651434855,0.9706,4613.2,4613.1,3.2078]
[1759651435659,0.9706,4613.2,4613.1,0.00206604]
[1759651436954,0.9706,4613.2,4613.1,3.20986604]
[1759651437663,1.1906,4613.2,4613.1,0.00206604]
[1759651441273,1.1413,4612.5,4612.4,3.2078]
[1759651441565,1.1413,4612.5,4611.0,0.0425]
[1759651441566,0.4545,4612.0,4611.9,3.3443]
[1759651441863,1.1413,4612.0,4611.9,3.2078]
[1759651442268,0.8643,4612.0,4611.9,3.48314075]
[1759651442669,0.4098,4612.4,4611.9,3.48314075]
[1759651442965,0.8643,4612.0,4611.9,3.48314075]
[1759651443762,1.1413,4612.0,4611.9,3.34664075]
[1759651444158,0.5805,4612.0,4611.9,3.48314075]
[1759651444357,1.1413,4612.0,4611.9,3.48314075]
[1759651444564,1.1413,4612.0,4611.9,3.34664075]
[1759651444963,1.1413,4612.0,4611.9,3.48314075]
[1759651444964,0.5805,4612.0,4611.9,3.48314075]
[1759651445369,0.5805,4612.0,4611.9,3.56844075]
[1759651445670,0.5805,4612.5,4612.4,0.273]
[1759651445861,0.4098,4612.9,4612.5,0.39012]
[1759651446169,0.6936,4612.9,4612.8,0.273]
[1759651446368,0.4545,4612.5,4612.4,3.3443]
[1759651446664,0.5805,4613.0,4612.9,0.273]
[1759651446857,0.6288,4613.2,4613.0,0.0853]
[1759651447058,0.6288,4613.2,4613.1,0.273]
[1759651447563,0.8643,4612.5,4612.4,3.3443]
[1759651447767,0.8643,4612.5,4612.4,3.4808]
[1759651448067,0.5805,4612.5,4612.4,3.2808]
[1759651449274,0.4545,4613.0,4612.9,0.1365]
[1759651449471,0.8643,4613.0,4612.9,0.1365]
[1759651449672,1.1413,4613.0,4612.9,0.1365]
[1759651450370,1.1413,4612.5,4612.4,3.2808]
[1759651450576,1.1413,4612.5,4612.4,3.0078]
[1759651450873,0.1707,4612.0,4611.9,3.21014075]
[1759651451072,1.1413,4612.0,4611.9,3.21014075]
[1759651451569,0.8575,4612.0,4611.9,3.48314075]
[1759651451776,0.4545,4612.5,4612.4,0.1365]
[1759651451974,0.4545,4612.5,4612.4,3.3443]
[1759651452171,0.1707,4612.5,4612.4,3.4808]
[1759651452476,0.5805,4612.5,4612.4,3.4808]
[1759651452872,0.5805,4612.5,4612.4,3.5661]
[1759651453065,0.5805,4612.5,4612.4,3.4808]
[1759651453675,0.5805,4613.0,4612.9,0.273]
[1759651453867,0.5805,4613.0,4612.9,3.4808]
[1759651454573,0.8643,4613.0,4612.9,3.4808]
[1759651455075,1.1413,4613.0,4612.9,3.4808]
[1759651455773,1.1413,4613.0,4612.9,3.2078]
[1759651456274,0.1707,4612.5,4612.2,3.2078]
[1759651456480,0.9706,4612.3,4612.2,3.2078]
[1759651457180,1.1657,4612.0,4611.9,0.00234075]
[1759651458775,0.1692,4611.5,4611.2,3.2078]
[1759651458969,0.9965,4611.3,4611.2,3.2078]
[1759651459175,0.4347,4611.3,4611.2,3.2078]
[1759651459374,0.4347,4610.4,4610.3,3.2078]
[1759651459775,0.43637883,4610.4,4610.3,3.20980711]
[1759651460171,0.38637883,4610.4,4610.3,3.20980711]
[1759651460773,0.38637883,4610.4,4610.3,0.00200711]
[1759651462479,3.16897828,4610.4,4610.3,0.00200711]
[1759651462674,3.94977828,4610.4,4610.3,0.00200711]
[1759651462878,8.94977828,4610.4,4610.3,0.00200711]
[1759651463278,3.94977828,4610.4,4610.3,0.00200711]
[1759651463482,8.94977828,4610.4,4610.3,0.00200711]
[1759651463783,3.94977828,4610.4,4610.3,0.00200711]
[1759651464283,1.16817883,4610.4,4610.3,0.00200711]
[1759651464484,0.94817883,4610.4,4610.3,0.59061711]
[1759651464673,0.94817883,4610.4,4610.3,0.20030711]
[1759651465079,0.94817883,4610.4,4610.3,0.00200711]
[1759651465379,8.71068053,4610.4,4610.3,0.00200711]
[1759651466071,0.1692,4610.0,4609.5,3.2078]
[1759651466382,0.9965,4609.6,4609.5,3.2078]
[1759651467177,0.7056,4609.4,4609.3,0.1983]
[1759651467377,0.7056,4609.4,4609.3,0.20039225]
[1759651467679,0.7056,4609.4,4609.3,0.39869225]
[1759651467880,4.00450512,4609.4,4609.3,0.00209225]
[1759651468079,0.1692,4609.0,4608.5,3.59826]
[1759651468282,0.6039,4608.0,4607.2,0.39057]
[1759651468474,3.2078,4608.8,4608.7,0.39044]
[1759651468675,0.1692,4609.0,4608.7,0.39044]
[1759651469074,0.1692,4609.0,4608.7,0.00261788]
[1759651469280,0.1692,4609.0,4608.9,0.39043]
[1759651469680,0.1692,4609.0,4608.8,0.39043]
[1759651469977,0.1692,4609.0,4608.7,0.00261788]
[1759651470283,0.1692,4609.0,4608.7,0.60405788]
[1759651470485,0.1692,4609.0,4608.8,0.39043]
[1759651470679,0.1692,4609.0,4608.7,0.00261788]
[1759651470983,0.4347,4608.9,4608.7,0.39305788]
[1759651471375,0.4347,4608.9,4608.7,0.60405788]
[1759651471978,0.6118,4609.5,4609.4,0.39038]
[1759651472171,0.1692,4609.5,4608.9,3.2078]
[1759651472377,0.6118,4609.5,4608.9,3.4398]
[1759651472673,0.1692,4609.5,4608.9,3.2078]
[1759651472981,0.1692,4609.5,4607.6,0.232]
[1759651472982,0.6083,4608.0,4607.7,0.39053]
[1759651473184,0.6083,4608.0,4607.6,0.232]
[1759651473379,0.6083,4608.0,4607.5,3.2078]
[1759651473577,0.6083,4608.0,4607.4,0.39054]
[1759651473779,0.6083,4608.0,4607.3,3.2078]
[1759651473780,0.6083,4608.0,4607.9,0.02332788]
[1759651474283,3.8161,4608.0,4607.9,0.02332788]
[1759651474483,0.6083,4608.0,4607.9,0.41383788]
[1759651475579,0.4426,4608.0,4607.9,0.41383788]
[1759651475785,0.6083,4608.0,4607.9,0.02332788]
[1759651475983,8.44346052,4608.0,4607.9,0.02332788]
[1759651476176,8.44346052,4608.0,4607.9,0.01781493]
[1759651476378,0.4426,4607.9,4606.9,0.39059]
[1759651476574,0.4426,4607.4,4607.0,0.39058]
[1759651476776,0.4426,4606.9,4606.8,0.3906]
[1759651476982,0.4426,4606.9,4606.6,3.59842]
[1759651477289,0.44463456,4606.9,4606.6,3.21024908]
[1759651477584,0.4426,4606.8,4606.6,0.00244908]
[1759651478779,0.4426,4606.8,4606.6,3.21024908]
[1759651479190,0.4426,4606.8,4606.7,0.39061]
[1759651479388,0.00203456,4606.9,4606.7,0.39061]
[1759651479586,0.00203456,4606.9,4606.6,3.21024908]
[1759651479587,0.4426,4606.8,4606.6,3.21024908]
[1759651479785,0.4426,4606.8,4606.7,0.39061]
[1759651480186,0.00203456,4606.9,4606.8,0.232]
[1759651480581,0.44463456,4606.9,4606.7,0.6226]
[1759651480787,0.4426,4606.8,4606.7,0.3906]
[1759651481887,0.4426,4606.8,4606.6,3.60086908]
[1759651482091,0.44463456,4606.9,4606.8,0.3906]
[1759651483587,0.00203456,4606.9,4606.8,0.6226]
[1759651484092,0.1657,4608.0,4607.9,0.39051]
[1759651484487,0.1657,4608.0,4607.5,3.2078]
[1759651484792,0.4426,4608.4,4607.5,3.8358]
[1759651485092,0.44483384,4608.4,4608.3,0.39048]
[1759651485294,0.00223384,4608.4,4608.3,0.79848]
[1759651485989,0.4426,4608.3,4608.0,3.6158]
[1759651486297,0.4426,4608.3,4608.2,0.39048]
[1759651486687,0.4426,4608.3,4608.0,3.2078]
[1759651486884,0.4426,4608.3,4607.5,3.7381]
[1759651487193,0.4125,4607.9,4607.5,3.2078]
[1759651487384,3.2078,4607.9,4606.8,3.2078]
[1759651487587,0.4125,4607.8,4606.9,0.22]
[1759651487786,0.4125,4607.8,4607.5,0.4443]
[1759651487990,0.6325,4608.2,4607.5,0.22]
[1759651488197,0.6325,4608.2,4608.0,0.39049]
[1759651488390,0.41473384,4608.4,4608.2,0.83479]
[1759651488593,0.41473384,4608.4,4608.2,0.39049]
[1759651488890,0.00223384,4608.4,4608.3,0.4443]
[1759651492390,0.41473384,4608.4,4608.3,0.4443]
[1759651492586,0.41473384,4608.4,4608.2,0.39049]
[1759651492784,0.41473384,4608.4,4608.3,0.22]
[1759651493392,0.4125,4608.3,4608.2,0.39049]
[1759651493594,0.4125,4608.3,4608.2,0.61049]
[1759651494298,0.4125,4608.3,4608.2,0.39049]
[1759651494506,0.00223384,4608.4,4608.3,0.4443]
[1759651494790,0.41473384,4608.4,4608.2,0.39049]
[1759651494996,0.41473384,4608.4,4608.0,3.2078]
[1759651494997,0.00223384,4608.4,4608.0,3.2078]
[1759651495201,0.00223384,4608.4,4608.3,0.83478]
[1759651495690,0.00223384,4608.4,4608.0,3.2078]
[1759651495691,0.00223384,4608.4,4608.2,0.39048]
[1759651495891,0.00223384,4608.4,4608.3,0.4443]
[1759651496694,0.00223384,4608.4,4608.3,5.4443]
[1759651497100,0.00223384,4608.4,4608.3,0.6643]
[1759651497495,0.00223384,4608.4,4608.3,5.6643]
[1759651498001,3.2078,4610.5,4610.3,0.3903]
[1759651498295,0.4125,4610.4,4610.2,0.39031]
[1759651498688,3.3755,4610.5,4610.2,0.39031]
[1759651498893,3.37811092,4610.5,4610.3,0.3903]
[1759651499095,0.00261092,4610.5,4610.4,0.4443]
[1759651500595,0.4125,4610.4,4610.2,0.00281079]
[1759651501098,8.17083609,4610.3,4610.2,0.00281079]
[1759651501295,3.17083609,4610.3,4610.2,0.00281079]
[1759651501601,0.4125,4610.3,4610.2,0.39313079]
[1759651501800,0.4125,4610.3,4610.2,0.00281079]
[1759651503394,0.00261092,4610.5,4610.3,0.39031]
[1759651503600,0.41511092,4610.5,4610.3,0.83461]
[1759651504102,0.00261092,4610.5,4610.3,0.83461]
[1759651504403,0.00261092,4610.5,4610.3,3.81811]
[1759651504604,0.00261092,4610.5,4610.4,0.4443]
[1759651504793,0.00261092,4610.5,4610.4,0.6643]
[1759651504995,0.00261092,4610.5,4610.4,0.4443]
[1759651505193,0.00261092,4610.5,4610.4,0.6643]
[1759651505606,0.00261092,4610.5,4610.4,0.4443]
[1759651505793,0.00261092,4610.5,4610.4,0.6643]
[1759651506309,0.00261092,4610.5,4610.4,0.4443]
[1759651506603,0.00261092,4610.5,4610.4,5.6643]
[1759651506901,0.00261092,4610.5,4610.4,5.4443]
[1759651507096,0.00261092,4610.5,4610.4,5.6643]
[1759651512101,0.5802,4612.0,4611.7,0.39018]
[1759651512302,0.4125,4612.4,4611.8,0.6643]
[1759651512606,0.4125,4612.4,4612.3,0.39013]
[1759651512805,0.4125,4612.4,4612.1,3.2078]
[1759651512806,0.4125,4612.4,4612.2,0.22]
[1759651513105,0.41405378,4612.4,4612.3,0.22]
[1759651513811,0.00155378,4612.4,4612.3,0.6643]
[1759651515403,0.4125,4613.4,4612.8,0.8344]
[1759651515607,0.4125,4613.4,4612.8,4.0422]
[1759651515907,3.2078,4613.6,4612.8,4.0422]
[1759651515908,0.1677,4613.0,4612.8,0.219]
[1759651516103,0.4345,4612.9,4612.8,0.219]
[1759651516298,0.43643408,4612.9,4612.8,0.219]
[1759651516707,0.43643408,4612.9,4612.8,0.6633]
[1759651517010,0.02393408,4612.9,4612.8,3.8711]
[1759651517608,0.02393408,4612.9,4612.8,3.6521]
[1759651517807,0.02393408,4612.9,4612.8,3.8711]
[1759651518010,0.02393408,4612.9,4612.8,3.6521]
[1759651518207,0.02393408,4612.9,4612.8,3.8711]
[1759651518408,0.02393408,4612.9,4612.8,3.6521]
[1759651518603,0.02393408,4612.9,4612.8,3.8711]
[1759651518809,0.02393408,4612.9,4612.8,3.6521]
[1759651519007,0.4095,4612.8,4612.3,3.6057]
[1759651519216,0.4095,4612.4,4612.3,3.2078]
[1759651519613,0.4095,4612.4,4611.9,0.3979]
[1759651519614,0.4095,4612.4,4611.9,0.39017]
[1759651519818,0.4095,4612.4,4612.0,0.219]
[1759651520211,3.23173408,4612.9,4612.0,0.219]
[1759651520212,0.02393408,4612.9,4612.3,3.6057]
[1759651520414,0.02393408,4612.9,4612.3,3.2078]
[1759651520614,0.5783,4612.5,4612.4,0.219]
[1759651520916,0.5783,4612.5,4611.8,0.3979]
[1759651521116,0.4095,4612.4,4612.2,0.39014]
[1759651521416,0.4095,4612.4,4611.7,3.2078]
[1759651521611,0.02393408,4612.9,4612.3,0.3979]
[1759651521817,0.4095,4612.8,4612.7,0.3901]
[1759651522514,0.02393408,4612.9,4612.8,0.3979]
[1759651522709,0.02393408,4612.9,4612.8,0.6169]
[1759651526717,0.02393408,4612.9,4612.8,5.6169]
[1759651527119,0.4095,4613.7,4612.8,5.6169]
[1759651527324,3.2078,4614.3,4613.8,0.39001]
[1759651527517,0.4095,4613.9,4613.8,0.39001]
[1759651527713,0.3878,4614.5,4613.8,0.39001]
[1759651527714,0.1688,4614.5,4614.4,0.38996]
[1759651528017,0.4095,4614.5,4614.4,1.00686]
[1759651528323,0.41174435,4614.5,4614.4,0.22108946]
[1759651529129,0.58054435,4614.5,4614.4,0.00208946]
[1759651529528,0.58054435,4614.5,4614.4,0.22108946]
[1759651531329,0.58054435,4614.5,4614.4,0.00208946]
[1759651531530,0.58054435,4614.5,4614.4,0.22108946]
[1759651532831,1.12254435,4614.5,4614.4,0.00208946]
[1759651533023,1.12254435,4614.5,4614.4,0.22108946]
[1759651533331,1.12254435,4614.5,4614.4,0.00208946]
[1759651533630,1.12254435,4614.5,4614.4,0.22108946]
[1759651533822,1.12254435,4614.5,4614.4,0.00208946]
[1759651534024,9.33034435,4614.5,4614.4,0.00208946]
[1759651534525,4.33034435,4614.5,4614.4,0.00208946]
[1759651534825,9.33034435,4614.5,4614.4,0.00208946]
[1759651535032,11.72903281,4614.5,4613.0,3.2078]
[1759651535332,0.4157,4613.1,4613.0,3.59788]
[1759651535523,0.4157,4613.1,4613.0,3.81688]
[1759651535720,0.4157,4613.1,4613.0,3.59788]
[1759651535924,0.4157,4613.1,4613.0,3.2078]
[1759651536228,0.4157,4613.1,4613.0,0.00200426]
[1759651536427,0.4157,4613.1,4613.0,0.22100426]
[1759651536832,0.4157,4613.1,4613.0,0.00200426]
[1759651537733,0.9512,4613.1,4613.0,0.00200426]
[1759651537933,0.9512,4613.1,4613.0,0.39208426]
[1759651538132,0.9512,4613.1,4613.0,0.00200426]
[1759651538734,0.9512,4613.1,4613.0,0.28020426]
[1759651540031,0.9512,4613.1,4613.0,0.00200426]
[1759651541634,0.2628,4611.9,4611.8,3.486]
[1759651541932,0.2628,4612.0,4611.9,0.66837]
[1759651542135,0.9512,4612.0,4611.9,0.66837]
[1759651542334,0.9512,4612.0,4611.9,1.15917]
[1759651542537,0.9512,4612.0,4611.9,1.36717]
[1759651542836,0.9512,4612.0,4611.9,0.94222235]
[1759651543032,0.171,4612.5,4612.2,0.66834]
[1759651543033,0.2628,4612.3,4612.2,0.66834]
[1759651543339,0.9512,4612.8,4612.7,0.55]
[1759651543532,0.9512,4612.8,4612.7,0.2782]
[1759651544837,0.2628,4612.9,4612.8,0.6683]
[1759651545036,0.9512,4612.9,4612.8,0.6683]
[1759651545238,0.9512,4612.9,4612.6,0.39011]
[1759651545433,0.2628,4612.7,4612.6,0.39011]
[1759651545636,0.9512,4612.7,4612.6,0.66831]
[1759651545832,0.9512,4612.7,4612.6,0.94011]
[1759651546033,0.9512,4612.7,4612.6,1.36711]
[1759651546739,0.6785,4612.7,4612.6,1.36711]
[1759651547133,0.9512,4612.7,4612.6,0.94011]
[1759651547336,0.1576,4612.5,4612.3,3.2078]
[1759651547540,0.9761,4612.4,4612.3,3.2078]
[1759651547740,0.9761,4612.4,4612.3,3.4268]
[1759651547937,0.9761,4612.4,4611.9,0.00205235]
[1759651548237,1.1337,4612.0,4611.9,0.00205235]
[1759651548832,0.9761,4612.0,4611.9,0.96845235]
[1759651549033,0.4285,4612.0,4611.9,0.96845235]
[1759651549232,0.2821,4612.3,4612.2,0.39014]
[1759651549439,0.9761,4612.3,4612.2,0.65914]
[1759651550137,0.9761,4612.3,4612.2,0.269]
[1759651550344,0.9761,4612.3,4612.2,0.65915]
[1759651550540,0.9761,4612.3,4612.0,0.39016]
[1759651550839,0.9761,4612.3,4612.1,0.39015]
[1759651552242,1.1337,4612.0,4611.9,0.39222235]
[1759651552642,1.1337,4612.0,4611.9,0.88022235]
[1759651553047,1.1337,4612.0,4611.9,0.66122235]
[1759651553239,1.1337,4612.0,4611.9,0.88022235]
[1759651553738,1.1337,4612.0,4611.9,0.61122235]
[1759651553944,1.1337,4612.0,4611.9,0.22105235]
[1759651554246,1.1337,4612.0,4611.9,0.00205235]
[1759651554636,1.1337,4612.0,4611.9,0.39222235]
[1759651555845,1.1337,4612.0,4611.9,0.00205235]
[1759651558040,0.1576,4612.5,4612.4,0.65913]
[1759651558248,0.7052,4612.5,4612.4,0.94803]
[1759651558642,1.1337,4612.5,4612.4,0.65913]
[1759651558840,1.1337,4612.5,4612.4,0.269]
[1759651559238,0.7052,4612.5,4612.2,3.81694]
[1759651559439,0.9761,4612.3,4612.2,0.87814]
[1759651559644,0.9761,4612.3,4612.2,0.65914]
[1759651559940,0.9761,4612.3,4612.2,0.60914]
[1759651560445,1.1337,4612.0,4611.9,0.27105235]
[1759651560646,1.1337,4612.0,4611.9,0.22105235]
[1759651561438,1.1337,4612.0,4611.9,0.00205235]
[1759651563348,1.1337,4612.0,4611.9,0.39222235]
[1759651564146,0.7052,4612.5,4612.4,0.65913]
[1759651564451,1.1337,4612.5,4612.4,0.94803]
[1759651564645,1.1337,4612.5,4612.4,4.15583]
[1759651564849,0.7106,4613.1,4613.0,0.5579]
[1759651565053,0.7106,4613.1,4613.0,1.1854]
[1759651566153,0.7106,4613.4,4613.3,0.5579]
[1759651566350,0.9761,4613.4,4613.3,0.94795]
[1759651566554,0.9761,4613.4,4613.3,1.35645]
[1759651566953,0.9761,4613.4,4613.3,0.94795]
[1759651567750,0.9761,4613.4,4613.3,1.16695]
[1759651567954,0.7052,4614.0,4613.9,0.9479]
[1759651568154,0.7052,4614.0,4613.9,1.3564]
[1759651568654,1.1337,4614.0,4613.9,1.3564]
[1759651568851,1.1337,4614.0,4613.9,0.9479]
[1759651569154,0.9761,4613.9,4613.8,0.659]
[1759651569346,1.13594435,4614.5,4614.4,0.38996]
[1759651569546,1.13594435,4614.5,4614.4,0.65896]
[1759651569850,1.13594435,4614.5,4614.4,1.35636]
[1759651569851,0.97834435,4614.5,4614.4,1.35636]
[1759651570251,1.13594435,4614.5,4614.4,1.16686]
[1759651571052,1.53747554,4615.7,4614.5,0.5734]
[1759651571355,0.1576,4616.0,4615.7,1.35625]
[1759651571356,0.2821,4615.8,4615.7,1.35625]
[1759651571551,0.4285,4616.1,4616.0,0.9664]
[1759651571752,0.7106,4616.1,4616.0,1.1854]
[1759651572053,0.71278369,4616.1,4616.0,4.3959805]
[1759651572247,0.00218369,4616.1,4616.0,4.0029805]
[1759651572454,0.00218369,4616.1,4616.0,9.0029805]
[1759651572953,0.00218369,4616.1,4616.0,3.7839805]
[1759651573258,0.00218369,4616.1,4616.0,4.0029805]
[1759651574562,0.00218369,4616.1,4616.0,3.7839805]
[1759651574760,0.43068369,4616.1,4616.0,0.0027805]
[1759651574955,8.63848369,4616.1,4616.0,0.0027805]
[1759651578360,8.85748369,4616.1,4616.0,0.0027805]
[1759651579256,0.3882,4614.9,4614.2,3.6298]
[1759651579459,0.3882,4614.9,4614.3,0.219]
[1759651579863,0.3882,4614.9,4614.3,0.60897]
[1759651580063,0.3882,4615.4,4615.3,0.422]
[1759651580355,0.3882,4615.4,4615.3,0.00266577]
[1759651582466,3.596,4615.4,4615.3,0.00266577]
[1759651582664,0.3882,4615.7,4615.4,0.422]
[1759651582960,0.219,4615.8,4615.3,0.00266577]
[1759651583865,0.219,4615.8,4615.3,0.81454577]
[1759651584060,0.219,4615.8,4615.3,0.39254577]
[1759651584256,0.3882,4615.7,4615.3,0.00266577]
[1759651584559,0.219,4615.8,4615.4,0.38988]
[1759651584961,0.3882,4615.7,4615.4,0.38988]
[1759651585155,0.219,4615.8,4615.3,0.00266577]
[1759651585357,0.3882,4615.6,4615.4,0.38988]
[1759651585562,0.1576,4616.5,4615.8,0.9658]
[1759651585563,0.3882,4615.9,4615.8,0.9658]
[1759651585769,0.3882,4616.4,4616.0,0.9658]
[1759651586064,0.1576,4616.5,4616.0,0.9658]
[1759651586065,0.5458,4616.5,4616.0,0.9658]
[1759651586265,0.3882,4616.5,4616.0,1.1306]
[1759651587571,0.28268369,4616.1,4616.0,0.9658]
[1759651587771,0.67088369,4616.1,4616.0,0.9658]
[1759651588269,0.2805,4615.7,4615.6,1.07835]
[1759651588467,0.6687,4615.7,4615.6,1.07835]
[1759651588663,0.00218369,4616.1,4616.0,1.1306]
[1759651588863,0.00218369,4616.1,4616.0,4.3384]
[1759651589571,0.00218369,4616.1,4616.0,4.5574]
[1759651591372,0.67088369,4616.1,4616.0,4.1736]
[1759651591571,0.95128369,4616.1,4616.0,3.7516]
[1759651591773,0.95128369,4616.1,4616.0,3.9706]
[1759651591965,0.95128369,4616.1,4616.0,0.2665]
[1759651592172,0.6659,4615.7,4615.6,0.9378]
[1759651592368,0.9389,4615.7,4615.6,0.5273]
[1759651592580,11.27177983,4615.7,4614.3,0.4105]
[1759651592771,3.2078,4614.4,4614.0,0.1604]
[1759651593773,7.82164545,4614.3,4614.0,0.16272826]
[1759651593976,0.219,4614.2,4614.0,0.16272826]
[1759651594270,2.82164545,4614.1,4614.0,0.16272826]
[1759651594769,0.219,4614.2,4614.1,0.4105]
[1759651594966,0.219,4614.2,4614.0,0.16272826]
[1759651595172,0.219,4614.2,4610.8,0.97567]
[1759651595173,3.2078,4613.8,4612.3,0.4105]
[1759651595372,3.2078,4612.6,4612.3,0.4105]
[1759651595574,3.86850497,4612.6,4612.5,0.5709]
[1759651595777,8.86850497,4612.6,4612.5,0.5709]
[1759651596069,11.74179403,4612.6,4611.5,0.1604]
[1759651596272,3.2078,4611.7,4611.5,0.1604]
[1759651596474,0.44170497,4611.6,4611.5,0.1604]
[1759651597079,0.44170497,4611.6,4611.5,0.16191846]
[1759651597474,0.44170497,4611.6,4611.5,0.00151846]
[1759651597874,5.44170497,4611.6,4611.5,0.00151846]
[1759651598270,8.28164177,4611.6,4611.5,0.00151846]
[1759651598682,8.28164177,4611.6,4610.5,0.5709]
[1759651598877,3.2078,4610.6,4610.0,0.1604]
[1759651599075,0.66070497,4610.5,4610.0,0.5709]
[1759651599378,0.44170497,4610.4,4610.0,0.1604]
[1759651599681,0.44170497,4610.3,4610.0,0.16262657]
[1759651599880,0.219,4610.5,4610.0,0.16262657]
[1759651600090,0.43978816,4610.4,4610.0,0.16262657]
[1759651600379,0.219,4610.5,4610.1,0.4105]
[1759651600578,0.43923703,4610.4,4610.0,0.16262657]
[1759651600772,0.219,4610.5,4610.0,0.16262657]
[1759651601073,3.2078,4611.2,4611.1,0.80074]
[1759651601281,3.2078,4611.7,4611.6,0.4105]
[1759651601981,3.2078,4611.7,4611.6,0.8007]
[1759651602375,0.219,4612.1,4611.8,0.39018]
[1759651602581,0.219,4612.1,4612.0,0.5709]
[1759651602877,0.219,4612.1,4612.0,0.96106]
[1759651603185,3.2078,4612.2,4612.1,0.4105]
[1759651603978,0.22098247,4612.6,4612.5,0.1604]
[1759651604377,0.22098247,4612.6,4612.5,0.5709]
[1759651605784,0.00198247,4612.6,4612.5,0.5709]
[1759651606182,0.22098247,4612.6,4612.5,0.5709]
[1759651606679,0.219,4614.6,4614.1,0.4105]
[1759651606884,3.2078,4614.2,4614.1,0.1936]
[1759651607084,3.2298,4614.2,4614.1,0.1936]
[1759651607488,3.23145006,4614.2,4614.1,0.19536083]
[1759651609388,3.20945006,4614.2,4614.1,0.19536083]
[1759651611284,0.00165006,4614.2,4614.1,0.19536083]
[1759651611485,0.0481,4616.0,4615.0,0.1732]
[1759651611486,3.2078,4615.3,4615.0,0.1732]
[1759651611990,3.2078,4615.3,4615.1,0.4054]
[1759651612181,3.2078,4615.3,4615.2,0.38989]
[1759651612387,3.20992891,4615.3,4615.2,0.79529]
[1759651612586,3.20992891,4615.3,4615.2,0.4054]
[1759651614587,0.00212891,4615.3,4615.2,0.4054]
[1759651615386,0.00212891,4615.3,4615.2,5.4054]
[1759651617694,0.00212891,4615.3,4615.2,5.6244]
[1759651618391,0.1627,4615.7,4615.6,0.4054]
[1759651618694,0.1627,4615.7,4615.6,0.79526]
[1759651618891,3.2078,4616.3,4616.2,0.79521]
[1759651619397,3.21003804,4616.3,4616.2,0.79521]
[1759651620398,0.00223804,4616.3,4616.2,0.79521]
[1759651620995,0.00223804,4616.3,4616.2,0.6244]
[1759651621197,0.00223804,4616.3,4616.2,0.4054]
[1759651621389,3.21003804,4616.3,4616.2,0.4054]
[1759651621597,3.26023804,4616.3,4616.0,0.5786]
[1759651621896,3.26023804,4616.3,4616.1,0.4054]
[1759651622097,3.26023804,4616.3,4615.5,0.3202]
[1759651622098,8.42903804,4616.3,4615.6,0.4054]
[1759651622287,3.2078,4615.8,4615.6,0.4054]
[1759651622493,3.42903804,4616.3,4615.7,0.4054]
[1759651623586,3.2078,4615.8,4615.7,0.4054]
[1759651623896,3.42903804,4616.3,4615.7,0.4054]
[1759651624096,3.42903804,4616.3,4615.7,0.79525]
[1759651624494,3.21003804,4616.3,4615.6,0.4054]
[1759651624699,3.42903804,4616.3,4616.2,0.4054]
[1759651624995,3.42903804,4616.3,4615.5,0.1732]
[1759651625187,3.2078,4615.6,4615.5,0.1732]
[1759651625594,3.2078,4615.6,4615.5,0.5786]
[1759651626902,3.2078,4615.6,4615.1,0.4054]
[1759651627102,0.219,4615.5,4615.1,0.4054]
[1759651627298,0.0502,4615.3,4614.7,0.4054]
[1759651627504,3.258,4615.1,4614.1,3.20956083]
[1759651627690,3.258,4615.1,4614.6,0.4054]
[1759651628099,3.258,4615.1,4614.1,3.20956083]
[1759651628100,3.258,4615.1,4614.5,0.96855]
[1759651628300,3.258,4615.1,4614.5,0.5786]
[1759651628500,3.2078,4614.6,4614.5,0.5786]
[1759651628703,0.219,4614.7,4614.5,0.1732]
[1759651629000,0.219,4614.7,4614.6,0.4054]
[1759651630001,5.219,4614.7,4614.1,0.40716083]
[1759651630303,3.258,4614.6,4614.2,0.4054]
[1759651630496,0.0502,4614.4,4614.2,0.4054]
[1759651630692,0.219,4614.3,4614.1,0.00176083]
[1759651630898,0.0502,4614.2,4614.1,0.00176083]
[1759651631504,0.219,4614.3,4614.1,0.39175083]
[1759651631703,0.43887763,4614.2,4614.1,0.39175083]
[1759651631905,0.43887763,4614.2,4614.1,0.40716083]
[1759651632299,0.219,4614.3,4614.1,0.40716083]
[1759651632499,0.43947566,4614.2,4614.1,0.40716083]
[1759651632801,0.43947566,4614.2,4614.1,0.97706083]
[1759651633105,3.2078,4615.1,4615.0,0.96851]
[1759651633298,3.86621734,4615.1,4615.0,0.96851]
[1759651633700,3.64721734,4615.1,4615.0,0.96851]
[1759651634503,0.43941734,4615.1,4615.0,0.96851]
[1759651634899,3.2078,4615.8,4615.0,0.96851]
[1759651634900,3.4268,4615.8,4615.4,0.38987]
[1759651635106,0.44000028,4615.7,4615.6,0.4054]
[1759651637810,0.52040028,4615.7,4615.6,0.6874]
[1759651638198,0.52040028,4615.7,4615.6,0.9547]
[1759651640714,0.49940028,4615.7,4615.6,0.9547]
[1759651640914,0.55880028,4615.7,4615.6,0.9547]
[1759651641111,0.55880028,4615.7,4615.6,0.6874]
[1759651642613,0.0371,4615.6,4615.0,0.5802]
[1759651642819,3.3266,4615.1,4615.0,0.5802]
[1759651643012,3.98560028,4615.1,4614.6,0.407]
[1759651643210,0.0594,4614.7,4614.6,1.07734]
[1759651643412,0.49940028,4614.7,4614.6,1.07734]
[1759651643613,0.49940028,4614.7,4614.6,0.6874]
[1759651643921,0.55880028,4614.7,4614.6,0.6874]
[1759651644514,0.81598845,4614.7,4614.6,0.407]
[1759651644708,0.81598845,4614.7,4614.5,0.1732]
[1759651644917,3.76768845,4614.6,4614.5,0.5802]
[1759651645721,0.1188,4614.3,4614.2,0.407]
[1759651646029,0.77888845,4614.3,4614.2,0.407]